bitfinex/quotes_BTCUSD_20251024
["timestamp","ask_amount","ask_price","bid_price","bid_amount"]
[1761320072336,4.05076564,110480.0,110470.0,0.00176867]
[1761320072548,3.95555564,110480.0,110470.0,0.00176867]
[1761320075007,4.00555564,110480.0,110470.0,0.00176867]
[1761320082424,4.00387123,110480.0,110470.0,0.00176867]
[1761320086545,4.03640765,110480.0,110470.0,0.00176867]
[1761320092123,4.07258993,110480.0,110470.0,0.00176867]
[1761320095000,3.98640765,110480.0,110470.0,0.00176867]
[1761320095213,3.95387123,110480.0,110470.0,0.00176867]
[1761320098313,3.99005351,110480.0,110470.0,0.00176867]
[1761320098525,4.02258993,110480.0,110470.0,0.00176867]
[1761320099431,4.08139455,110480.0,110470.0,1e-08]
[1761320099640,4.04885813,110480.0,110470.0,1e-08]
[1761320100266,4.09885813,110480.0,110470.0,1e-08]
[1761320100749,4.13144788,110480.0,110470.0,1e-08]
[1761320100967,0.1810938,110440.0,110430.0,0.0004]
[1761320101187,3.92066988,110440.0,110430.0,1e-08]
[1761320101631,3.55729248,110430.0,110420.0,0.0004]
[1761320101863,3.71545377,110430.0,110420.0,0.0004]
[1761320102097,3.66666916,110430.0,110420.0,0.0004]
[1761320102323,3.73242179,110430.0,110420.0,0.00053267]
[1761320102544,3.8222408,110430.0,110420.0,0.00053267]
[1761320102760,3.9821208,110430.0,110420.0,0.00053267]
[1761320103205,3.93633564,110430.0,110420.0,0.00053267]
[1761320103424,3.98500736,110430.0,110420.0,0.00053267]
[1761320103639,3.98500642,110430.0,110420.0,0.00053267]
[1761320103864,3.98494979,110430.0,110420.0,0.00053267]
[1761320104081,4.05538467,110430.0,110420.0,0.00053267]
[1761320104545,3.98794979,110430.0,110420.0,0.00053267]
[1761320104754,4.02037237,110430.0,110420.0,0.00053267]
[1761320106877,4.02037237,110430.0,110420.0,0.0022446]
[1761320108473,3.97170159,110430.0,110420.0,0.0022446]
[1761320108706,4.04012786,110430.0,110420.0,0.0022446]
[1761320110412,3.38246851,110430.0,110420.0,0.0022446]
[1761320110632,3.04246851,110430.0,110420.0,0.60560555]
[1761320110881,0.02291084,110430.0,110420.0,0.60560555]
[1761320111331,0.01991084,110430.0,110420.0,0.1833712]
[1761320111548,0.03701133,110430.0,110420.0,0.1833712]
[1761320111768,0.04101133,110430.0,110420.0,0.60560555]
[1761320111978,0.03901133,110430.0,110420.0,0.60560555]
[1761320112209,0.03701133,110430.0,110420.0,0.60560555]
[1761320112427,0.04001133,110430.0,110420.0,0.60560555]
[1761320112867,0.22042564,110430.0,110420.0,0.1833712]
[1761320114197,3.65024465,110430.0,110420.0,0.0022446]
[1761320114414,3.64924465,110430.0,110420.0,0.0022446]
[1761320114627,3.65124465,110430.0,110420.0,0.0022446]
[1761320114878,3.64924465,110430.0,110420.0,0.0022446]
[1761320115097,3.77148624,110430.0,110420.0,0.0022446]
[1761320115335,3.77248624,110430.0,110420.0,0.0022446]
[1761320115553,3.77148624,110430.0,110420.0,0.0022446]
[1761320116025,3.87652622,110430.0,110420.0,0.0022446]
[1761320116459,3.87452622,110430.0,110420.0,0.0022446]
[1761320116679,3.77148624,110430.0,110420.0,0.0022446]
[1761320116887,0.77348624,110430.0,110420.0,0.0022446]
[1761320117116,0.93348624,110430.0,110420.0,0.0022446]
[1761320117329,0.92948624,110430.0,110420.0,0.0022446]
[1761320117773,0.93648624,110430.0,110420.0,0.0022446]
[1761320119570,0.98515702,110430.0,110420.0,0.0022446]
[1761320120034,0.93648624,110430.0,110420.0,0.0022446]
[1761320120728,3.93648624,110430.0,110420.0,0.0022446]
[1761320120954,3.97266852,110430.0,110420.0,0.0022446]
[1761320121396,4.0213393,110430.0,110420.0,0.0022446]
[1761320122553,3.98891672,110430.0,110420.0,0.0022446]
[1761320123021,3.21730888,110420.0,110410.0,0.0004]
[1761320123249,3.53983917,110420.0,110410.0,0.00053205]
[1761320123685,3.53983917,110420.0,110410.0,0.00087455]
[1761320124560,3.54683917,110420.0,110410.0,0.00087455]
[1761320124797,3.49448064,110420.0,110410.0,0.00087455]
[1761320125031,0.65448064,110420.0,110410.0,0.00087455]
[1761320125694,3.70305747,110420.0,110410.0,0.00087455]
[1761320125910,3.67065689,110420.0,110410.0,0.00087455]
[1761320126376,3.62208006,110420.0,110410.0,0.00087455]
[1761320126598,3.65826234,110420.0,110410.0,0.00087455]
[1761320126840,3.72330804,110420.0,110410.0,0.00087455]
[1761320127768,3.52114301,110410.0,110400.0,0.0004]
[1761320127983,3.78581017,110410.0,110400.0,0.00054653]
[1761320128428,3.80214217,110410.0,110400.0,0.00054653]
[1761320128648,3.80214217,110410.0,110400.0,0.00088907]
[1761320129303,3.80414217,110410.0,110400.0,0.00088907]
[1761320129526,3.8130469,110410.0,110400.0,0.00088907]
[1761320130483,3.8150469,110410.0,110400.0,0.00088907]
[1761320132469,3.78618348,110410.0,110400.0,0.00088907]
[1761320132690,3.52115942,110400.0,110390.0,0.0004]
[1761320132914,4.02015657,110400.0,110390.0,0.0004]
[1761320134224,3.80419657,110400.0,110390.0,0.0004]
[1761320134489,0.55947486,110400.0,110390.0,0.0004]
[1761320134738,0.76822556,110400.0,110390.0,0.0004]
[1761320134978,0.11963074,110400.0,110390.0,0.62222184]
[1761320135217,0.30079016,110400.0,110390.0,0.60410426]
[1761320135448,0.11963074,110400.0,110390.0,0.60410426]
[1761320136106,0.07284004,110400.0,110390.0,0.60410426]
[1761320136325,0.07284004,110400.0,110390.0,0.18157583]
[1761320136593,0.30027683,110400.0,110390.0,0.18157583]
[1761320136808,0.11911741,110400.0,110390.0,0.18157583]
[1761320137033,0.30027683,110400.0,110390.0,0.0004]
[1761320137248,0.34906753,110400.0,110390.0,0.18157583]
[1761320137958,0.34906753,110400.0,110390.0,0.0004]
[1761320138413,0.34906753,110400.0,110390.0,0.00074258]
[1761320140362,3.31654293,110400.0,110390.0,0.00074258]
[1761320140576,3.26775223,110400.0,110390.0,0.00074258]
[1761320140813,3.31653818,110400.0,110390.0,0.00074258]
[1761320141245,3.26775223,110400.0,110390.0,0.00074258]
[1761320141464,3.42771223,110400.0,110390.0,0.00074258]
[1761320143043,3.26775223,110400.0,110390.0,0.00074258]
[1761320143261,3.42771223,110400.0,110390.0,0.00074258]
[1761320143483,0.42771223,110400.0,110390.0,0.00074258]
[1761320143690,0.47654057,110400.0,110390.0,0.00074258]
[1761320143899,0.42771223,110400.0,110390.0,0.00074258]
[1761320144109,0.47653977,110400.0,110390.0,0.00074258]
[1761320144338,0.50913053,110400.0,110390.0,0.00074258]
[1761320145418,0.50913606,110400.0,110390.0,0.00074258]
[1761320145670,0.47657977,110400.0,110390.0,0.00074258]
[1761320146109,0.29542035,110400.0,110390.0,0.18191841]
[1761320146373,0.32797782,110400.0,110390.0,0.20003599]
[1761320146593,0.12170045,110400.0,110390.0,0.60444684]
[1761320146820,0.07287291,110400.0,110390.0,0.69426585]
[1761320147267,0.04031544,110400.0,110390.0,0.69426585]
[1761320148043,0.0214046,110400.0,110390.0,0.69426585]
[1761320148243,0.0194046,110400.0,110390.0,0.69426585]
[1761320148874,0.0214046,110400.0,110390.0,0.69426585]
[1761320149504,0.0204046,110400.0,110390.0,0.75226585]
[1761320149710,0.0214046,110400.0,110390.0,0.75226585]
[1761320150130,0.0234046,110400.0,110390.0,0.75226585]
[1761320150750,0.004,110400.0,110390.0,0.75226585]
[1761320150961,0.004,110400.0,110390.0,0.78844813]
[1761320151372,0.004,110400.0,110390.0,1.55097656]
[1761320151653,0.002,110400.0,110390.0,1.55097656]
[1761320151920,0.002,110400.0,110390.0,1.12844813]
[1761320152469,0.18111166,110430.0,110420.0,0.1811266]
[1761320152694,0.20076689,110430.0,110420.0,0.1811266]
[1761320153672,0.01965523,110430.0,110420.0,0.69347404]
[1761320153884,0.01965523,110430.0,110420.0,0.27094561]
[1761320154076,0.02065523,110430.0,110420.0,0.27394561]
[1761320154284,0.02065523,110430.0,110420.0,0.1841266]
[1761320154493,0.02265523,110430.0,110420.0,0.1841266]
[1761320155332,0.02265523,110430.0,110420.0,0.60665503]
[1761320155541,0.00314601,110430.0,110420.0,0.60665503]
[1761320155759,0.00314601,110430.0,110420.0,0.69647404]
[1761320155971,0.00849853,110450.0,110430.0,0.1811102]
[1761320156186,0.18960437,110450.0,110440.0,0.1810938]
[1761320156402,0.01948459,110450.0,110440.0,0.1810938]
[1761320156607,0.200562,110450.0,110440.0,0.1810938]
[1761320157267,0.204562,110450.0,110440.0,0.1810938]
[1761320157700,0.206562,110450.0,110440.0,0.1810938]
[1761320158348,0.18507741,110450.0,110440.0,0.1810938]
[1761320158794,0.19107741,110450.0,110440.0,0.1820938]
[1761320159231,0.2003722,110450.0,110430.0,0.3411902]
[1761320159460,0.2023722,110450.0,110440.0,0.001]
[1761320159877,0.18307741,110450.0,110440.0,0.1820938]
[1761320160298,0.16012,110460.0,110450.0,0.18107741]
[1761320160511,0.01945471,110460.0,110450.0,0.18107741]
[1761320160768,0.36973503,110470.0,110450.0,0.18107741]
[1761320160990,3.0,110460.0,110450.0,0.18107741]
[1761320161229,0.20051572,110460.0,110450.0,0.18107741]
[1761320161424,0.18106101,110460.0,110450.0,0.18107741]
[1761320161673,0.2005081,110460.0,110450.0,0.18107741]
[1761320162122,0.02013167,110460.0,110450.0,0.18107741]
[1761320162543,0.00068458,110460.0,110450.0,0.18107741]
[1761320162976,0.18774559,110460.0,110450.0,0.18207741]
[1761320163218,0.18774559,110460.0,110450.0,0.001]
[1761320163429,0.26103171,110460.0,110450.0,0.001]
[1761320165191,0.69085072,110460.0,110450.0,0.001]
[1761320165619,3.74085072,110460.0,110450.0,0.001]
[1761320166724,3.6870033,110460.0,110450.0,0.001]
[1761320166955,0.59718429,110460.0,110450.0,0.001]
[1761320170926,0.41722429,110460.0,110450.0,0.18207741]
[1761320172105,0.36722429,110460.0,110450.0,0.18207741]
[1761320172918,0.20718429,110460.0,110450.0,0.18207741]
[1761320173506,0.02612328,110460.0,110450.0,0.18207741]
[1761320174370,0.02612328,110460.0,110450.0,0.69442485]
[1761320174841,0.02612328,110460.0,110450.0,0.27189642]
[1761320175060,0.20718429,110460.0,110450.0,0.001]
[1761320175280,0.20718429,110460.0,110450.0,0.16116]
[1761320175485,0.20518429,110460.0,110450.0,0.34223741]
[1761320175686,0.20518429,110460.0,110450.0,0.34123741]
[1761320175893,0.20118429,110460.0,110450.0,0.34123741]
[1761320176134,0.20318429,110460.0,110450.0,0.19107741]
[1761320176555,0.25318429,110460.0,110450.0,0.19107741]
[1761320177198,0.07212328,110460.0,110450.0,0.19107741]
[1761320177410,0.07012328,110460.0,110450.0,0.18107741]
[1761320177623,0.02212328,110460.0,110450.0,0.18107741]
[1761320177839,0.02212328,110460.0,110450.0,0.18207741]
[1761320177840,0.02312328,110460.0,110450.0,0.18207741]
[1761320178268,0.02312328,110460.0,110450.0,0.69442485]
[1761320178613,0.02312328,110460.0,110450.0,0.27189642]
[1761320182960,0.20418429,110460.0,110450.0,0.27189642]
[1761320183583,0.02312328,110460.0,110450.0,0.27189642]
[1761320183844,0.20418429,110460.0,110450.0,0.18207741]
[1761320184716,0.02312328,110460.0,110450.0,0.18207741]
[1761320188074,0.02312328,110460.0,110450.0,0.75160556]
[1761320188713,0.02312328,110460.0,110450.0,0.27189642]
[1761320189362,0.02312328,110460.0,110450.0,0.75160556]
[1761320190071,0.02312328,110460.0,110450.0,0.80956556]
[1761320190257,0.02312328,110460.0,110450.0,0.96956556]
[1761320190702,0.00368458,110460.0,110450.0,0.96956556]
[1761320191150,0.02320289,110460.0,110450.0,0.27189642]
[1761320191403,0.02320289,110460.0,110450.0,0.18207741]
[1761320191404,0.2042639,110460.0,110450.0,0.18207741]
[1761320191619,0.2042639,110460.0,110450.0,0.16104]
[1761320191833,0.2042639,110460.0,110450.0,0.34211741]
[1761320192243,0.2012639,110460.0,110450.0,0.34111741]
[1761320192455,0.2032639,110460.0,110450.0,0.35411741]
[1761320193086,0.2032639,110460.0,110450.0,0.35311741]
[1761320193397,0.02220289,110460.0,110450.0,0.35411741]
[1761320193803,0.2032639,110460.0,110450.0,0.35411741]
[1761320194046,0.2032639,110460.0,110450.0,0.19407741]
[1761320194247,0.2032639,110460.0,110450.0,0.35411741]
[1761320195194,0.02220289,110460.0,110450.0,0.35411741]
[1761320196193,0.2032639,110460.0,110450.0,0.35411741]
[1761320196782,0.02220289,110460.0,110450.0,0.35411741]
[1761320197203,0.02220289,110460.0,110450.0,0.35403741]
[1761320197446,0.02220289,110460.0,110450.0,0.92356556]
[1761320197648,0.02220289,110460.0,110450.0,0.44385642]
[1761320200245,0.02220289,110460.0,110450.0,0.92356556]
[1761320200686,0.07220289,110460.0,110450.0,0.92356556]
[1761320200895,0.07220289,110460.0,110450.0,0.86593984]
[1761320201099,0.05268458,110460.0,110450.0,0.86593984]
[1761320202597,0.00268458,110460.0,110450.0,0.86593984]
[1761320203615,0.00268458,110460.0,110450.0,0.44385642]
[1761320204023,0.00268458,110460.0,110450.0,0.86593984]
[1761320207352,0.00268458,110460.0,110450.0,0.44385642]
[1761320207565,0.00268458,110460.0,110450.0,0.86593984]
[1761320207996,0.00268458,110460.0,110450.0,0.86585984]
[1761320210593,0.00268458,110460.0,110450.0,1.12806326]
[1761320210754,0.00268458,110460.0,110450.0,0.70597984]
[1761320211140,0.00268458,110460.0,110450.0,1.28794326]
[1761320211348,0.00268458,110460.0,110450.0,1.12806326]
[1761320211556,0.00268458,110460.0,110450.0,1.28794326]
[1761320212139,0.00268458,110460.0,110450.0,1.12806326]
[1761320212337,0.00268458,110460.0,110450.0,2.10620894]
[1761320212565,0.00268458,110460.0,110450.0,1.71130663]
[1761320213586,0.00268458,110460.0,110450.0,1.71030663]
[1761320213761,0.00068458,110460.0,110450.0,1.69830663]
[1761320213997,0.00068458,110460.0,110450.0,1.70030663]
[1761320214286,0.00068458,110460.0,110450.0,1.53442665]
[1761320214287,0.00368458,110460.0,110450.0,1.53442665]
[1761320214449,0.00368458,110460.0,110450.0,1.27238323]
[1761320214813,0.00368458,110460.0,110450.0,1.33034323]
[1761320215462,0.05368458,110460.0,110450.0,1.11234323]
[1761320215669,0.05368458,110460.0,110450.0,1.33034323]
[1761320215880,0.05368458,110460.0,110450.0,1.11234323]
[1761320216306,0.05368458,110460.0,110450.0,1.27234323]
[1761320216519,0.05368458,110460.0,110450.0,1.33030323]
[1761320216739,0.05368458,110460.0,110450.0,1.11234323]
[1761320217426,0.05368458,110460.0,110450.0,1.27234323]
[1761320217627,0.05368458,110460.0,110450.0,1.33030323]
[1761320218032,0.05368458,110460.0,110450.0,1.27234323]
[1761320218223,0.05368458,110460.0,110450.0,1.53442665]
[1761320218854,0.05368458,110460.0,110450.0,1.69442665]
[1761320219059,0.05368458,110460.0,110450.0,1.75238665]
[1761320219267,0.05368458,110460.0,110450.0,1.53442665]
[1761320220179,0.05368458,110460.0,110450.0,0.85021981]
[1761320220348,0.00368458,110460.0,110450.0,1.53442665]
[1761320220976,0.00368458,110460.0,110450.0,1.69438665]
[1761320221563,0.00368458,110460.0,110450.0,1.53442665]
[1761320221797,0.00368458,110460.0,110450.0,1.75234665]
[1761320227627,0.00048833,110470.0,110460.0,0.52106101]
[1761320227844,0.00048833,110470.0,110460.0,1.87713028]
[1761320228272,0.07779579,110510.0,110500.0,0.18099547]
[1761320228486,0.07794228,110510.0,110500.0,0.18099547]
[1761320228926,0.20065408,110510.0,110500.0,0.18099547]
[1761320230245,0.18099547,110500.0,110490.0,0.34087693]
[1761320230529,0.20052397,110500.0,110490.0,0.34087693]
[1761320231138,0.0195285,110500.0,110490.0,0.34087693]
[1761320231569,0.18312558,110510.0,110500.0,0.18099547]
[1761320231772,0.20264812,110510.0,110500.0,0.18099547]
[1761320232413,0.20064812,110510.0,110500.0,0.18099547]
[1761320232836,0.01966903,110510.0,110500.0,0.18099547]
[1761320233045,0.00014649,110510.0,110500.0,0.18099547]
[1761320233461,0.01114649,110510.0,110500.0,0.18199547]
[1761320233671,0.03066903,110510.0,110500.0,0.60407889]
[1761320233887,0.03237955,110510.0,110500.0,0.18199547]
[1761320234298,0.03237955,110510.0,110500.0,0.60407889]
[1761320234922,0.03237955,110510.0,110500.0,0.18199547]
[1761320235738,0.03237955,110510.0,110500.0,0.60407889]
[1761320235951,0.01285701,110510.0,110500.0,0.60407889]
[1761320236177,0.01285701,110510.0,110500.0,1.17390132]
[1761320236610,0.01285701,110510.0,110500.0,0.27181448]
[1761320236826,0.01285701,110510.0,110500.0,0.34183547]
[1761320237036,0.1918361,110510.0,110500.0,0.16096]
[1761320237246,0.1828361,110510.0,110500.0,0.34295547]
[1761320237686,0.1848361,110510.0,110500.0,0.36295547]
[1761320237891,0.1828361,110510.0,110500.0,0.34295547]
[1761320238103,0.20333169,110510.0,110500.0,0.34895547]
[1761320238562,0.20333169,110510.0,110500.0,0.34695547]
[1761320238986,0.20333169,110510.0,110500.0,0.34795547]
[1761320240050,0.20333169,110510.0,110500.0,0.18799547]
[1761320243077,0.20333169,110510.0,110500.0,0.007]
[1761320243700,0.23051277,110510.0,110500.0,0.007]
[1761320243924,0.39043277,110510.0,110500.0,0.007]
[1761320244653,0.44759233,110510.0,110500.0,0.007]
[1761320244937,3.93533134,110510.0,110500.0,0.007]
[1761320245161,3.98533134,110510.0,110500.0,0.007]
[1761320245363,4.05169959,110510.0,110500.0,0.007]
[1761320245559,3.83835277,110510.0,110500.0,0.007]
[1761320245770,0.83735277,110510.0,110490.0,0.18101132]
[1761320245979,0.83764225,110510.0,110490.0,0.18101132]
[1761320246189,0.50664225,110510.0,110500.0,0.001]
[1761320246419,0.44876225,110510.0,110500.0,0.001]
[1761320246635,0.44847277,110510.0,110500.0,0.001]
[1761320247038,0.44847277,110510.0,110490.0,0.18101132]
[1761320247039,0.18099547,110500.0,110490.0,0.18101132]
[1761320247246,0.20049835,110500.0,110490.0,0.18201132]
[1761320247460,0.20049835,110500.0,110480.0,0.19007956]
[1761320247683,0.20049835,110500.0,110490.0,0.18101185]
[1761320249302,0.20249835,110500.0,110490.0,0.18101185]
[1761320249504,0.20949835,110500.0,110490.0,0.18201185]
[1761320249706,0.19949835,110500.0,110490.0,0.18201185]
[1761320251652,0.02850288,110500.0,110490.0,0.18201185]
[1761320251856,0.20949835,110500.0,110490.0,0.18201185]
[1761320252530,0.21086689,110500.0,110490.0,0.18201185]
[1761320256032,0.2734139,110500.0,110490.0,0.001]
[1761320256255,0.21086689,110500.0,110490.0,0.001]
[1761320256670,0.21086689,110500.0,110490.0,0.18201185]
[1761320256875,0.21086689,110500.0,110490.0,0.001]
[1761320259443,0.37066689,110500.0,110490.0,0.001]
[1761320260055,0.39784955,110500.0,110490.0,0.001]
[1761320260313,0.80400209,110500.0,110490.0,0.001]
[1761320260523,3.98429141,110500.0,110490.0,0.001]
[1761320261145,3.9517411,110500.0,110490.0,0.001]
[1761320261360,0.18102824,110480.0,110470.0,0.19009583]
[1761320261570,0.34082824,110480.0,110470.0,0.19009583]
[1761320261762,0.34151263,110480.0,110470.0,0.19009583]
[1761320262580,0.34351263,110480.0,110470.0,0.19009583]
[1761320262792,0.35051263,110480.0,110470.0,0.19109583]
[1761320263011,0.00968439,110480.0,110470.0,0.28091484]
[1761320263451,0.19071263,110480.0,110470.0,0.44071484]
[1761320263659,0.19071263,110480.0,110470.0,0.34184462]
[1761320265173,0.00968439,110480.0,110470.0,0.34184462]
[1761320265812,0.19071263,110480.0,110470.0,0.18204462]
[1761320266246,0.19071263,110480.0,110470.0,0.001]
[1761320268839,0.1996227,110480.0,110470.0,0.001]
[1761320269294,0.22681063,110480.0,110470.0,0.001]
[1761320269724,0.21790056,110480.0,110470.0,0.001]
[1761320269940,0.21790056,110480.0,110470.0,0.01910446]
[1761320269941,0.35063263,110480.0,110470.0,0.01910446]
[1761320270239,0.35063263,110480.0,110470.0,0.001]
[1761320271617,0.37015842,110480.0,110470.0,0.001]
[1761320272834,0.39734697,110480.0,110470.0,0.001]
[1761320274044,0.39734697,110480.0,110470.0,0.18204462]
[1761320274262,0.35063263,110480.0,110470.0,0.001]
[1761320275061,0.35059263,110480.0,110470.0,0.18204462]
[1761320278447,0.35059263,110480.0,110470.0,0.19204462]
[1761320278985,0.35059263,110480.0,110470.0,0.011]
[1761320280858,0.3701212,110480.0,110470.0,0.011]
[1761320281482,0.3700812,110480.0,110470.0,0.011]
[1761320281711,0.37773997,110480.0,110470.0,0.011]
[1761320282109,0.39726746,110480.0,110470.0,0.011]
[1761320282888,0.39726746,110480.0,110470.0,0.19204462]
[1761320283092,0.37773997,110480.0,110470.0,0.19204462]
[1761320283540,0.37773997,110480.0,110470.0,0.011]
[1761320283695,0.39727026,110480.0,110470.0,0.011]
[1761320284482,0.39727026,110480.0,110470.0,0.19204462]
[1761320285308,0.3601585,110480.0,110470.0,0.19204462]
[1761320286124,0.20821558,110480.0,110470.0,0.19204462]
[1761320286330,0.34090824,110480.0,110470.0,0.19204462]
[1761320286547,0.15988,110480.0,110470.0,0.19204462]
[1761320286752,0.34090824,110480.0,110470.0,0.19204462]
[1761320289599,0.15988,110480.0,110470.0,0.19204462]
[1761320289801,0.34090824,110480.0,110470.0,0.19204462]
[1761320290003,0.15988,110480.0,110470.0,0.19204462]
[1761320291319,0.18102672,110490.0,110480.0,0.18102824]
[1761320291519,0.20057726,110490.0,110470.0,0.19204462]
[1761320291729,0.43241773,110490.0,110470.0,0.19204462]
[1761320291876,0.18102824,110480.0,110470.0,0.19204462]
[1761320292658,0.20057905,110480.0,110470.0,0.19204462]
[1761320293062,0.19057905,110480.0,110470.0,0.18104462]
[1761320293691,0.17102824,110480.0,110470.0,0.18104462]
[1761320293892,0.17102824,110480.0,110470.0,0.18204462]
[1761320294506,0.19057889,110480.0,110470.0,0.18204462]
[1761320294744,0.19057889,110480.0,110470.0,0.001]
[1761320295956,0.24392345,110480.0,110470.0,0.001]
[1761320296167,0.24492345,110480.0,110470.0,0.001]
[1761320296772,3.64288345,110480.0,110470.0,0.001]
[1761320298054,3.73270246,110480.0,110470.0,0.001]
[1761320298304,3.74967221,110480.0,110470.0,0.001]
[1761320299028,3.74867221,110480.0,110470.0,0.001]
[1761320299231,0.18107741,110450.0,110440.0,0.1918979]
[1761320299438,0.18107741,110450.0,110440.0,0.28171691]
[1761320299653,0.18107741,110450.0,110440.0,0.1918979]
[1761320300477,0.18216575,110450.0,110440.0,0.2058979]
[1761320300903,0.18216575,110450.0,110440.0,0.2068979]
[1761320301109,0.00108834,110450.0,110440.0,0.2068979]
[1761320302374,0.18216575,110450.0,110440.0,0.19784349]
[1761320307159,0.23216575,110450.0,110440.0,0.19784349]
[1761320312310,0.05108834,110450.0,110440.0,0.2876625]
[1761320312535,0.05108834,110450.0,110440.0,1.13223934]
[1761320312983,0.05108834,110450.0,110440.0,1.19019934]
[1761320313870,0.05108834,110450.0,110440.0,1.22638162]
[1761320314283,0.05108834,110450.0,110440.0,0.38180478]
[1761320314505,0.05108834,110450.0,110440.0,0.92779092]
[1761320317131,0.05108834,110450.0,110440.0,0.5055025]
[1761320317363,0.05108834,110450.0,110440.0,0.92779092]
[1761320317580,0.05108834,110450.0,110440.0,0.5055025]
[1761320318454,0.05108834,110450.0,110440.0,0.4475425]
[1761320321054,0.05108834,110450.0,110440.0,0.86983092]
[1761320322329,0.05108834,110450.0,110440.0,0.4475425]
[1761320327700,0.23216575,110450.0,110440.0,0.4475425]
[1761320328159,0.05108834,110450.0,110440.0,0.4475425]
[1761320330085,0.23216575,110450.0,110440.0,0.4475425]
[1761320331448,0.23216575,110450.0,110440.0,0.2876625]
[1761320331655,0.23216575,110450.0,110440.0,0.35772349]
[1761320331968,0.25170537,110450.0,110440.0,0.35772349]
[1761320332168,0.23216575,110450.0,110440.0,0.35772349]
[1761320333201,0.23216575,110450.0,110440.0,0.19784349]
[1761320333610,0.23216575,110450.0,110440.0,0.01674969]
[1761320333851,0.23216575,110450.0,110440.0,0.19784349]
[1761320336721,0.05108834,110450.0,110440.0,0.19784349]
[1761320336913,0.23216575,110450.0,110440.0,0.19784349]
[1761320337495,0.05108834,110450.0,110440.0,0.19784349]
[1761320337704,0.23216575,110450.0,110440.0,0.19784349]
[1761320338431,0.05129559,110450.0,110440.0,0.19784349]
[1761320338651,0.18106476,110460.0,110450.0,0.18107741]
[1761320338838,0.20058758,110460.0,110450.0,0.18156574]
[1761320339048,0.18106101,110460.0,110450.0,0.18156574]
[1761320339191,0.18106101,110460.0,110450.0,0.34144574]
[1761320340726,0.18206101,110460.0,110450.0,0.34144574]
[1761320341357,0.2015871,110460.0,110450.0,0.16036833]
[1761320341563,0.2015871,110460.0,110450.0,0.34144574]
[1761320342914,0.001,110460.0,110450.0,0.34144574]
[1761320343133,0.20159217,110460.0,110450.0,0.34144574]
[1761320343482,0.18206101,110460.0,110450.0,0.34144574]
[1761320343892,0.001,110460.0,110450.0,0.34144574]
[1761320344523,0.001,110460.0,110450.0,1.33380159]
[1761320345125,0.001,110460.0,110450.0,0.91151317]
[1761320345338,0.001,110460.0,110450.0,0.85351317]
[1761320345532,0.001,110460.0,110450.0,0.91147317]
[1761320345778,0.002,110460.0,110450.0,0.92347317]
[1761320346110,0.001,110460.0,110450.0,0.91147317]
[1761320346524,0.002,110460.0,110450.0,0.93547317]
[1761320346731,0.002,110460.0,110450.0,0.93647317]
[1761320347333,0.002,110460.0,110450.0,0.93547317]
[1761320347748,0.002,110460.0,110450.0,0.93747317]
[1761320348826,0.002,110460.0,110450.0,0.51518475]
[1761320349019,0.002,110460.0,110450.0,0.93747317]
[1761320349833,0.002,110460.0,110450.0,0.71967317]
[1761320350042,0.052,110460.0,110450.0,0.93747317]
[1761320351560,0.052,110460.0,110450.0,0.51518475]
[1761320351976,0.052,110460.0,110450.0,0.93747317]
[1761320352632,0.052,110460.0,110450.0,1.35976159]
[1761320354021,0.052,110460.0,110450.0,0.71967317]
[1761320354228,0.052,110460.0,110450.0,0.87951317]
[1761320354425,0.052,110460.0,110450.0,0.93747317]
[1761320358289,0.052,110460.0,110450.0,0.71967317]
[1761320358521,0.052,110460.0,110450.0,0.93747317]
[1761320360668,0.052,110460.0,110450.0,0.51518475]
[1761320360874,0.052,110460.0,110450.0,0.93747317]
[1761320362701,0.052,110460.0,110450.0,0.51518475]
[1761320362983,0.052,110460.0,110450.0,0.93747317]
[1761320365189,0.052,110460.0,110450.0,1.35976159]
[1761320365581,0.052,110460.0,110450.0,1.38694543]
[1761320367063,0.052,110460.0,110450.0,0.74685701]
[1761320367274,0.052,110460.0,110450.0,0.32456859]
[1761320367486,0.23826101,110460.0,110450.0,0.18628833]
[1761320367701,0.23826101,110460.0,110450.0,0.20756574]
[1761320368110,0.23306101,110460.0,110450.0,0.20756574]
[1761320368280,0.2505948,110460.0,110450.0,0.18156574]
[1761320368490,0.2505948,110460.0,110450.0,0.18256574]
[1761320368654,0.2515948,110460.0,110450.0,0.18256574]
[1761320369085,0.2515948,110460.0,110450.0,0.00148833]
[1761320369250,0.2515948,110460.0,110450.0,0.18256574]
[1761320369866,0.2515948,110460.0,110450.0,0.00148833]
[1761320370075,0.29485886,110460.0,110450.0,0.00148833]
[1761320373070,0.63485886,110460.0,110450.0,0.00148833]
[1761320373465,3.63485886,110460.0,110450.0,0.00148833]
[1761320373983,3.63485886,110460.0,110450.0,0.00048833]
[1761320374396,3.63385886,110460.0,110450.0,0.00048833]
[1761320374798,3.63585886,110460.0,110450.0,0.00048833]
[1761320375301,3.63385886,110460.0,110450.0,0.00048833]
[1761320375508,3.72567787,110460.0,110450.0,0.00048833]
[1761320376284,3.72367787,110460.0,110450.0,0.00048833]
[1761320377550,3.72567787,110460.0,110450.0,0.00048833]
[1761320378000,3.72367787,110460.0,110450.0,0.00048833]
[1761320378408,3.72567787,110460.0,110450.0,0.00048833]
[1761320378844,3.72367787,110460.0,110450.0,0.00048833]
[1761320379298,3.72567787,110460.0,110450.0,0.00048833]
[1761320379442,3.72767787,110460.0,110450.0,0.00048833]
[1761320380508,3.68441381,110460.0,110450.0,0.00048833]
[1761320381289,3.90221381,110460.0,110450.0,0.00048833]
[1761320381486,3.84425381,110460.0,110450.0,0.00048833]
[1761320381708,3.68441381,110460.0,110450.0,0.00048833]
[1761320381916,3.90221381,110460.0,110450.0,0.00048833]
[1761320382248,3.99203282,110460.0,110450.0,0.00048833]
[1761320382465,3.77423282,110460.0,110450.0,0.00048833]
[1761320382675,3.90221381,110460.0,110450.0,0.00048833]
[1761320386197,3.84425381,110460.0,110450.0,0.00048833]
[1761320386439,3.90221381,110460.0,110450.0,0.00048833]
[1761320389257,0.7544348,110460.0,110450.0,0.00048833]
[1761320389937,0.7524348,110460.0,110450.0,0.00048833]
[1761320390158,0.7544348,110460.0,110450.0,0.00048833]
[1761320390823,0.7524348,110460.0,110450.0,0.00048833]
[1761320391034,0.7544348,110460.0,110450.0,0.00048833]
[1761320391245,0.7544348,110460.0,110450.0,0.18156574]
[1761320391246,0.7524348,110460.0,110450.0,0.18156574]
[1761320391908,0.57137379,110460.0,110450.0,0.00048833]
[1761320393651,0.63926555,110460.0,110450.0,0.00048833]
[1761320396351,0.64435138,110460.0,110450.0,0.00048833]
[1761320398580,0.64435138,110460.0,110450.0,0.00048833]
[1761320399742,0.67690169,110460.0,110450.0,0.00048833]
[1761320401197,3.78293417,110460.0,110450.0,0.00048833]
[1761320401444,3.83543636,110460.0,110450.0,0.00048833]